fUSD/lending_fUSD_20251029
["ID","MTS","AMOUNT","RATE_DAILY","PERIOD"]
[392652298,1761778232963,-166.66,0.00014636,2]
[392652300,1761778232975,-500.0,0.00014647,2]
[392652302,1761778232985,-221.53471527,0.00014708,2]
[392652304,1761778232995,-595.37131296,0.00014797,2]
[392652306,1761778233005,-167.1132101,0.000148,2]
[392652308,1761778233014,-3205.3904,0.0001485,2]
[392652310,1761778233026,-3205.3904,0.0001486,2]
[392652312,1761778233035,-1000.0,0.00014898,2]
[392652314,1761778233044,-749.74192079,0.000149,2]
[392652316,1761778233053,-749.74192079,0.000149,2]
[392652318,1761778233062,-1451.02932867,0.000149,2]
[392652320,1761778233071,-456.53565454,0.000149,2]
[392652322,1761778233080,-7361.35674546,0.000149,2]
[392652324,1761778233090,-3476.41545656,0.000149,2]
[392652326,1761778233099,-151.0,0.00014964,2]
[392652328,1761778233108,-151.0,0.00014966,2]
[392652330,1761778233117,-151.0,0.00014966,2]
[392652332,1761778233126,-151.0,0.00014966,2]
[392652334,1761778233135,-500.0,0.00014973,2]
[392652336,1761778233144,-500.0,0.00014973,2]
[392652338,1761778233154,-500.0,0.00014973,2]
[392652340,1761778233163,-500.0,0.00014973,2]
[392652342,1761778233172,-548.2783667,0.00014973,2]
[392652344,1761778233182,-500.0,0.00014973,2]
[392652346,1761778233191,-500.0,0.00014973,2]
[392652348,1761778233200,-500.0,0.00014973,2]
[392652350,1761778233210,-606.0,0.00014976,2]
[392652352,1761778233219,-573.0,0.00014976,2]
[392652354,1761778233228,-3418.0,0.00014976,2]
[392652356,1761778233238,-820.0,0.00014976,2]
[392652358,1761778233247,-277.178,0.00014976,2]
[392652360,1761778233256,-3492.0,0.00014976,2]
[392652362,1761778233265,-6628.0,0.00014976,2]
[392652364,1761778233274,-558.0,0.00014976,2]
[392652366,1761778233283,-500.0,0.00014998,2]
[392652368,1761778233292,-500.0,0.00014998,2]
[392652370,1761778233301,-500.0,0.00014998,2]
[392652371,1761778233311,-206.57064535,0.00014998,2]
[392652373,1761778233321,-155.0,0.00014999,2]
[392652375,1761778233330,-35689.1879613,0.00014999,2]
[392652377,1761778233339,-620.4,0.00014999,2]
[392652378,1761778233348,-500.0,0.00014999,2]
[392652379,1761778233358,-500.0,0.00014999,2]
[392652380,1761778233367,-190.44436743,0.00015,2]
[392652381,1761778233379,-2017.55563257,0.00015,2]
[392652382,1761778233388,-72818.64021069,0.00015,2]
[392652383,1761778233399,-67329.53052532,0.00015,2]
[392652398,1761778238097,-1066.075756,0.00015,2]
[392652400,1761778238109,-11334.93291275,0.00015,2]
[392652402,1761778238120,-10118.54296844,0.00015,2]
[392652404,1761778238131,-1495.86923439,0.00015,2]
[392652405,1761778238260,-8426.28311524,0.00015,2]
[392652406,1761778238351,-505.96095637,0.00015,2]
[392652411,1761778240569,-443330.33051448,0.00015,2]
[392652412,1761778240579,-25234.22656546,0.00015,2]
[392652413,1761778240589,-79759.80530998,0.00015,2]
[392652414,1761778240598,-37339.87027294,0.00015,2]
[392652415,1761778240607,-1636288.72399798,0.00015,2]
[392652416,1761778240617,-491249.03503361,0.00015,2]
[392652417,1761778240626,-2027.33023954,0.00015,2]
[392652418,1761778240828,-7892.25569995,0.00015,2]
[392652419,1761778240838,-163201.81949881,0.00015,2]
[392652420,1761778240913,-9635.63013159,0.00015,2]
[392652421,1761778241031,-4327.68925804,0.00015,2]
[392652422,1761778241345,-1.6e-07,0.00015,2]
[392652423,1761778241356,-67448.12229394,0.00015,2]
[392652424,1761778241436,-1769.78849319,0.00015,2]
[392652469,1761778243325,-237.25579355,0.000149,2]
[392652471,1761778243335,-8061.84786315,0.00015,2]
[392652504,1761778246428,-307.7080992,0.00015,2]
[392652509,1761778273314,999.0,0.00015687,3]
[392652513,1761778425866,791.8900187,0.000315,120]
[392652517,1761778624183,838.42242372,0.000315,120]
[392652572,1761779110843,150.0,0.00013488,2]
[392652573,1761779111001,150.0,0.00013488,2]
[392652574,1761779111112,150.0,0.00013488,2]
[392652575,1761779116073,150.0,0.00013488,2]
[392652576,1761779118322,152.22718871,0.00013488,2]
[392652577,1761779118702,150.0,0.00013488,2]
[392652578,1761779118844,150.0,0.00013488,2]
[392652579,1761779123855,197.84576896,0.00013488,2]
[392652580,1761779131260,150.0,0.00013488,2]
[392652581,1761779131306,150.0,0.00013488,2]
[392652582,1761779131694,150.0,0.00013488,2]
[392652583,1761779133938,150.0,0.00013488,2]
[392652593,1761779275218,406.0,0.00031507,120]
[392652615,1761779432414,-2362.652455,0.00014012,2]
[392652617,1761779432425,-250.0,0.00014082,2]
[392652619,1761779432434,-209.138,0.00014118,2]
[392652621,1761779432444,-500.0,0.00014218,2]
[392652623,1761779432453,-165.73,0.00014231,2]
[392652625,1761779432463,-150.0,0.00014237,2]
[392652627,1761779432472,-150.0,0.00014237,2]
[392652629,1761779432481,-150.0,0.00014237,2]
[392652631,1761779432491,-150.0,0.00014237,2]
[392652633,1761779432499,-150.0,0.00014237,2]
[392652635,1761779432508,-150.0,0.00014237,2]
[392652637,1761779432518,-250.0,0.0001429,2]
[392652639,1761779432527,-166.76,0.00014592,2]
[392652641,1761779432536,-863.24389556,0.00014606,2]
[392652643,1761779432546,-150.0,0.00014674,2]
[392652645,1761779432555,-1200.0,0.00014674,2]
[392652647,1761779432565,-300.0,0.00014674,2]
[392652649,1761779432576,-277.35679052,0.00014675,2]
[392652651,1761779432586,-11464.89199854,0.00014675,2]
[392652653,1761779432597,-598.69638418,0.00014675,2]
[392652656,1761779432613,-2202.21161728,0.00014675,2]
[392652658,1761779432623,-9031.12,0.00014675,2]
[392652659,1761779432634,-1200.0,0.0001468,2]
[392652672,1761779432822,-1710.615,0.00014683,2]
[392652674,1761779432836,-262.49045203,0.00014683,2]
[392652677,1761779432845,-167.01858659,0.00014683,2]
[392652680,1761779432855,-342.04259806,0.00014683,2]
[392652683,1761779432864,-108677.88450032,0.00014684,2]
[392652686,1761779432873,-221.53471527,0.00014774,2]
[392652689,1761779432883,-1130.042,0.00014835,2]
[392652691,1761779432892,-3953.327,0.00014835,2]
[392652693,1761779432901,-3088.623,0.00014835,2]
[392652695,1761779432912,-3179.619,0.00014835,2]
[392652696,1761779432921,-558.0,0.00014835,2]
[392652697,1761779432931,-2136.92693,0.0001485,2]
[392652698,1761779432940,-183.65556037,0.00014899,2]
[392652699,1761779432950,-183.65556035,0.00014899,2]
[392652700,1761779432960,-476.05,0.00014899,2]
[392652701,1761779432969,-183.65556035,0.00014899,2]
[392652702,1761779432978,-183.65556035,0.00014899,2]
[392652703,1761779432988,-183.65556035,0.00014899,2]
[392652704,1761779432998,-183.65556035,0.000149,2]
[392652705,1761779433007,-183.65556035,0.000149,2]
[392652706,1761779433017,-183.65556035,0.000149,2]
[392652707,1761779433026,-183.65556035,0.000149,2]
[392652708,1761779433037,-556.968,0.000149,2]
[392652709,1761779433046,-209.1929424,0.000149,2]
[392652710,1761779433056,-183.65556035,0.000149,2]
[392652711,1761779433065,-4692.60187153,0.000149,2]
[392652712,1761779433074,-1380.92600646,0.000149,2]
[392652713,1761779433083,-537.68148276,0.000149,2]
[392652714,1761779433092,-500.0,0.00014973,2]
[392652715,1761779433102,-500.0,0.00014973,2]
[392652716,1761779433111,-500.0,0.00014973,2]
[392652717,1761779433121,-500.0,0.00014973,2]
[392652718,1761779433130,-500.0,0.00014973,2]
[392652719,1761779433139,-500.0,0.00014973,2]
[392652720,1761779433149,-500.0,0.00014973,2]
[392652721,1761779433158,-500.0,0.00014973,2]
[392652722,1761779433167,-500.0,0.00014973,2]
[392652723,1761779433176,-349.13524529,0.00014973,2]
[392652724,1761779433187,-500.0,0.00014973,2]
[392652725,1761779433196,-500.0,0.00014973,2]
[392652726,1761779433206,-500.0,0.00014973,2]
[392652727,1761779433215,-500.0,0.00014973,2]
[392652728,1761779433229,-502.1403642,0.00014973,2]
[392652729,1761779433239,-500.0,0.00014973,2]
[392652730,1761779433249,-164.16145377,0.00014973,2]
[392652731,1761779433259,-500.0,0.00014973,2]
[392652732,1761779433268,-500.0,0.00014973,2]
[392652733,1761779433279,-500.0,0.00014973,2]
[392652734,1761779433290,-661.05,0.00014973,2]
[392652735,1761779433299,-606.0,0.00014976,2]
[392652736,1761779433309,-573.0,0.00014976,2]
[392652737,1761779433319,-820.0,0.00014976,2]
[392652738,1761779433328,-157.276,0.00014976,2]
[392652739,1761779433338,-200.36449101,0.00014986,2]
[392652740,1761779433347,-166.217747,0.00014986,2]
[392652741,1761779433357,-170.536239,0.00014986,2]
[392652742,1761779433367,-221.69076306,0.00014986,2]
[392652743,1761779433376,-174.44709483,0.00014986,2]
[392652744,1761779433386,-225.29480008,0.00014986,2]
[392652745,1761779433396,-150.0,0.00014986,2]
[392652746,1761779433406,-170.19145156,0.00014986,2]
[392652747,1761779433415,-220.91,0.0001499,2]
[392652748,1761779433425,-500.0,0.00014991,2]
[392652749,1761779433435,-500.0,0.00014991,2]
[392652750,1761779433445,-500.0,0.00014991,2]
[392652751,1761779433455,-574.12855637,0.00014991,2]
[392652752,1761779433464,-322.6107,0.00014991,2]
[392652753,1761779433475,-500.0,0.00014999,2]
[392652754,1761779433484,-500.0,0.00014999,2]
[392652755,1761779433494,-500.0,0.00014999,2]
[392652756,1761779433504,-500.0,0.00014999,2]
[392652757,1761779433515,-500.0,0.00014999,2]
[392652758,1761779433525,-500.0,0.00014999,2]
[392652759,1761779433538,-500.0,0.00014999,2]
[392652760,1761779433548,-500.0,0.00014999,2]
[392652761,1761779433558,-500.0,0.00014999,2]
[392652762,1761779433568,-500.0,0.00014999,2]
[392652763,1761779433578,-482.29509491,0.00014999,2]
[392652764,1761779433588,-500.0,0.00014999,2]
[392652765,1761779433599,-500.0,0.00014999,2]
[392652766,1761779433609,-500.0,0.00014999,2]
[392652767,1761779433618,-500.0,0.00014999,2]
[392652768,1761779433632,-500.0,0.00014999,2]
[392652769,1761779433642,-500.0,0.00014999,2]
[392652770,1761779433651,-500.0,0.00014999,2]
[392652771,1761779433661,-205.89,0.00014999,2]
[392652772,1761779433670,-1974.0,0.00015,2]
[392652773,1761779433680,-72054.01984155,0.00015,2]
[392652774,1761779433693,-55338.60853008,0.00015,2]
[392652775,1761779433704,-18792.91391864,0.00015,2]
[392652776,1761779433774,-2001.74475912,0.00015,2]
[392652777,1761779433855,-86072.04549576,0.00015,2]
[392652820,1761779439150,-197.7131613,0.000149,2]
[392652821,1761779439160,-11915.56244819,0.00015,2]
[392652836,1761779439309,-2123.7353959,0.00015,2]
[392652838,1761779439320,-9771.64126745,0.00015,2]
[392652840,1761779439331,-13525.68517499,0.00015,2]
[392652842,1761779439342,-10996.23083593,0.00015,2]
[392652844,1761779439353,-2665.84679736,0.00015,2]
[392652846,1761779440435,-3804.21324726,0.00015,2]
[392652851,1761779440563,-41808.29302906,0.00015,2]
[392652852,1761779440575,-24358.7689872,0.00015,2]
[392652853,1761779440586,-52039.77471311,0.00015,2]
[392652854,1761779440799,-61724.61342032,0.00015,2]
[392652855,1761779440811,-2411633.50307399,0.00015,2]
[392652856,1761779440821,-10245.60006886,0.00015,2]
[392652857,1761779440830,-150.0,0.00015,2]
[392652858,1761779440840,-1030.81657461,0.00015,2]
[392652859,1761779440849,-150.0,0.00015,2]
[392652860,1761779440858,-4973.74700564,0.00015,2]
[392652861,1761779440867,-150.0,0.00015,2]
[392652862,1761779440877,-630.16551895,0.00015,2]
[392652863,1761779440887,-63823.73162986,0.00015,2]
[392652864,1761779440896,-151.0,0.00015,2]
[392652865,1761779440905,-222.66599481,0.00015,2]
[392652866,1761779440915,-3684571.13611283,0.00015,2]
[392652867,1761779440931,-11856.91255006,0.00015,2]
[392652878,1761779443509,-335.99225361,0.00015,2]
[392652879,1761779443632,-289.376218,0.00015,2]
[392652881,1761779443755,-340.13472914,0.00015,2]
[392652903,1761779446440,-1451.064011,0.00015,2]
[392652904,1761779446453,-3384.1125924,0.00015,2]
[392652905,1761779446488,-886.04696,0.00015,2]
[392652906,1761779446500,-1161.68525166,0.00015,2]
[392652907,1761779446673,-350.0,0.00015,2]
[392652908,1761779446684,-605.73784635,0.00015,2]
[392652951,1761779526262,159.933,0.000315,120]
[392652957,1761779546351,500.0,0.000315,120]
[392652958,1761779562617,500.0,0.000315,120]
[392652960,1761779578602,500.0,0.000315,120]
[392652962,1761779595641,500.0,0.000315,120]
[392652963,1761779651654,500.0,0.00031507,120]
[392652964,1761779665516,500.0,0.00030137,120]
[392652965,1761779665883,500.0,0.00030411,120]
[392652966,1761779666880,500.0,0.00031507,120]
[392652967,1761779711438,500.0,0.00031507,120]
[392652968,1761779975174,15116.0,0.00031507,120]
[392652969,1761780022652,10000.0,0.00031507,120]
[392652976,1761780307248,150.0,0.00013488,2]
[392652977,1761780307559,150.0,0.00013488,2]
[392652978,1761780307629,150.0,0.00013488,2]
[392652980,1761780314203,150.0,0.00013488,2]
[392652981,1761780314589,150.00000001,0.00013488,2]
[392652982,1761780314654,150.0,0.00013488,2]
[392652983,1761780314761,150.0,0.00013488,2]
[392652984,1761780318056,286.65334943,0.00013488,2]
[392652985,1761780319849,9753.42770828,9e-05,2]
[392652986,1761780321369,153.73969324,0.00013488,2]
[392652987,1761780326972,150.0,0.00013488,2]
[392652988,1761780328156,150.0,0.00013488,2]
[392652989,1761780328528,150.0,0.00013488,2]
[392652991,1761780335702,1092.16639086,9e-05,2]
[392652992,1761780362055,7914.97052539,8e-05,2]
[392652993,1761780365875,8965.06239254,0.00011,2]
[392652999,1761780413872,150.0,0.00014126,120]
[392653000,1761780432737,205.0,9.8e-05,2]
[392653001,1761780436647,3013.85548636,0.0001305,2]
[392653002,1761780437032,257.44491321,0.000101,2]
[392653005,1761780467598,2194.0722137,0.00013,2]
[392653058,1761780631527,-610.0,0.00014067,2]
[392653060,1761780631537,-512.79,0.00014093,2]
[392653061,1761780631547,-250.0,0.0001411,2]
[392653062,1761780631557,-150.0,0.00014126,2]
[392653063,1761780631566,-221.53471527,0.00014761,2]
[392653064,1761780631575,-624.34738135,0.000148,2]
[392653065,1761780631586,-641.69349168,0.0001485,2]
[392653066,1761780631595,-1780.77244,0.0001485,2]
[392653067,1761780631605,-277.35679052,0.00014891,2]
[392653068,1761780631615,-1200.0,0.00014897,2]
[392653069,1761780631626,-1200.0,0.00014898,2]
[392653070,1761780631638,-300.0,0.00014898,2]
[392653071,1761780631648,-150.0,0.00014898,2]
[392653072,1761780631657,-500.0,0.00014899,2]
[392653073,1761780631667,-500.0,0.00014899,2]
[392653074,1761780631677,-500.0,0.00014899,2]
[392653075,1761780631686,-500.0,0.00014899,2]
[392653076,1761780631696,-500.0,0.00014899,2]
[392653077,1761780631706,-413.90527758,0.00014899,2]
[392653078,1761780631716,-500.0,0.00014899,2]
[392653079,1761780631726,-500.0,0.00014899,2]
[392653080,1761780631735,-500.0,0.00014899,2]
[392653081,1761780631744,-1404.524,0.00014899,2]
[392653082,1761780631754,-239.42981864,0.00014899,2]
[392653083,1761780631764,-620.26000602,0.00014899,2]
[392653084,1761780631773,-500.0,0.00014899,2]
[392653085,1761780631783,-415.2792653,0.00014899,2]
[392653086,1761780631792,-52180.20744222,0.000149,2]
[392653099,1761780631913,-34034.95085778,0.000149,2]
[392653101,1761780631922,-209.1929424,0.000149,2]
[392653103,1761780631932,-19440.07668744,0.000149,2]
[392653105,1761780631943,-666.0,0.000149,2]
[392653107,1761780631954,-2340.78589161,0.000149,2]
[392653110,1761780631964,-1322.0397,0.000149,2]
[392653113,1761780631974,-224.4511207,0.000149,2]
[392653117,1761780631983,-2689.61299014,0.000149,2]
[392653120,1761780631993,-590.62480662,0.000149,2]
[392653123,1761780632003,-224.45112068,0.000149,2]
[392653127,1761780632012,-671.95735875,0.000149,2]
[392653130,1761780632022,-500.0,0.00014973,2]
[392653133,1761780632032,-500.0,0.00014973,2]
[392653136,1761780632044,-500.0,0.00014973,2]
[392653137,1761780632053,-500.0,0.00014973,2]
[392653139,1761780632063,-500.0,0.00014973,2]
[392653141,1761780632072,-500.0,0.00014973,2]
[392653143,1761780632082,-500.0,0.00014973,2]
[392653145,1761780632092,-500.0,0.00014973,2]
[392653147,1761780632101,-500.0,0.00014973,2]
[392653149,1761780632110,-500.0,0.00014973,2]
[392653151,1761780632119,-509.47275478,0.00014973,2]
[392653153,1761780632129,-500.0,0.00014973,2]
[392653156,1761780632139,-500.0,0.00014973,2]
[392653158,1761780632149,-500.0,0.00014973,2]
[392653160,1761780632159,-1780.77244,0.0001498,2]
[392653162,1761780632168,-837.264,0.00014986,2]
[392653164,1761780632178,-573.0,0.00014986,2]
[392653165,1761780632188,-152.18926861,0.00014986,2]
[392653167,1761780632203,-154.52263191,0.00014986,2]
[392653169,1761780632212,-263.20129019,0.00014986,2]
[392653171,1761780632222,-29273.93432588,0.0001499,2]
[392653174,1761780632234,-726.06567412,0.0001499,2]
[392653176,1761780632245,-712.51636448,0.0001499,2]
[392653178,1761780632254,-712.51636448,0.0001499,2]
[392653180,1761780632263,-623.19718592,0.0001499,2]
[392653182,1761780632277,-89.31917856,0.0001499,2]
[392653184,1761780632287,-150.0,0.0001499,2]
[392653186,1761780632297,-500.0,0.00014991,2]
[392653188,1761780632307,-322.6107,0.00014991,2]
[392653190,1761780632316,-574.12855637,0.00014991,2]
[392653192,1761780632325,-73.76972642,0.00014999,2]
[392653201,1761780632404,-201.29705626,0.00014999,2]
[392653203,1761780632414,-155.0,0.00014999,2]
[392653205,1761780632423,-506.3469103,0.00014999,2]
[392653207,1761780632433,-150.0,0.00014999,2]
[392653209,1761780632442,-150.0,0.00014999,2]
[392653211,1761780632452,-201.68175415,0.00014999,2]
[392653213,1761780632461,-150.0,0.00014999,2]
[392653215,1761780632470,-150.0,0.00014999,2]
[392653217,1761780632479,-150.0,0.00014999,2]
[392653219,1761780632489,-150.59825921,0.00014999,2]
[392653221,1761780632498,-500.0,0.00014999,2]
[392653223,1761780632507,-624.16019572,0.00014999,2]
[392653224,1761780632517,-500.0,0.00014999,2]
[392653226,1761780632526,-150.0,0.00014999,2]
[392653229,1761780632537,-556.63917551,0.00014999,2]
[392653230,1761780632546,-1256.6358819,0.00015,2]
[392653243,1761780637867,-224.45112068,0.000149,2]
[392653245,1761780637878,-488.683,0.00014986,2]
[392653246,1761780637887,-500.0,0.0001499,2]
[392653247,1761780637897,-150.0,0.0001499,2]
[392653248,1761780637907,-550.3641181,0.00015,2]
[392653249,1761780637916,-30106.71598065,0.00015,2]
[392653250,1761780637927,-297.33904197,0.00015,2]
[392653251,1761780638027,-2115.3192957,0.00015,2]
[392653252,1761780638039,-13366.53940745,0.00015,2]
[392653253,1761780638051,-7094.20922747,0.00015,2]
[392653254,1761780638062,-281.81283353,0.00015,2]
[392653256,1761780639989,-500.0,0.0001499,2]
[392653257,1761780639999,-1161.8602,0.00015,2]
[392653258,1761780640030,-3460326.82099552,0.00015,2]
[392653259,1761780640039,-2450136.02343672,0.00015,2]
[392653260,1761780640050,-150.0,0.00015,2]
[392653261,1761780640059,-590.75491027,0.00015,2]
[392653262,1761780640068,-150.0,0.00015,2]
[392653264,1761780640077,-593.35255048,0.00015,2]
[392653265,1761780640087,-3762.0516074,0.00015,2]
[392653266,1761780640097,-151.0,0.00015,2]
[392653267,1761780640107,-7651.867732,0.00015,2]
[392653268,1761780640116,-150.0,0.00015,2]
[392653269,1761780640126,-1030.81657461,0.00015,2]
[392653270,1761780640135,-150.0,0.00015,2]
[392653271,1761780640145,-4973.74700564,0.00015,2]
[392653272,1761780640154,-150.0,0.00015,2]
[392653273,1761780640163,-630.16551895,0.00015,2]
[392653274,1761780640172,-3663.8962299,0.00015,2]
[392653275,1761780640182,-14575.2026954,0.00015,2]
[392653276,1761780640195,-333.99899222,0.00015,2]
[392653277,1761780640207,-500.0,0.00015,2]
[392653278,1761780640217,-158.5789073,0.00015,2]
[392653279,1761780640227,-150.000001,0.00015,2]
[392653280,1761780640236,-46271.7862973,0.00015,2]
[392653281,1761780640245,-627.89,0.00015,2]
[392653282,1761780640253,-156.2932749,0.00015,2]
[392653283,1761780640263,-68147.5075729,0.00015,2]
[392653284,1761780640272,-63823.73162986,0.00015,2]
[392653285,1761780640281,-49347.1400532,0.00015,2]
[392653286,1761780641624,168.0,0.000165,3]
[392653295,1761780642896,-478.884,0.00015,2]
[392653297,1761780642908,-333.67007859,0.00015,2]
[392653304,1761780715532,-472.19124027,0.00013699,2]
[392653305,1761780721363,-299.50036308,0.00013699,2]
[392653317,1761780836951,4196.0,0.000165,3]
[392653318,1761780849836,-373.4086,0.0001363,2]
[392653319,1761780853209,-239.73668524,0.0001363,2]
[392653320,1761780870863,500.0,0.00030137,120]
[392653334,1761780954937,-161.31795755,0.00013599,2]
[392653344,1761781040709,-338.68204245,0.00013599,2]
[392653345,1761781040732,-174.45350207,0.00013649,2]
[392653346,1761781043847,-75.54649793,0.00013649,2]
[392653347,1761781043877,-120.11313014,0.00013649,2]
[392653385,1761781129983,-242.97438483,0.00013599,2]
[392653419,1761781381445,1500.0,0.000315,120]
[392653420,1761781400006,-31.48891517,0.00013599,2]
[392653421,1761781400031,-143.53569246,0.00013649,2]
[392653422,1761781430563,943.25,0.000315,120]
[392653433,1761781483598,174.44,0.00011007,2]
[392653449,1761781516711,150.0,0.00013488,2]
[392653450,1761781526412,153.62878228,0.00013488,2]
[392653451,1761781531978,150.00000001,0.00013488,2]
[392653452,1761781533298,150.0,0.00013488,2]
[392653456,1761781550129,-106.46430754,0.00013649,2]
[392653457,1761781550152,-266.74152741,0.00013699,2]
[392653458,1761781553500,-475.26847259,0.00013699,2]
[392653459,1761781553524,-24.73152741,0.0001371,2]
[392653460,1761781557030,-169.58259135,0.0001371,2]
[392653507,1761781676075,150.8135832,0.00031506,120]
[392653512,1761781731010,-500.0,0.00013705,2]
[392653513,1761781732714,-372.22073145,0.00013705,2]
[392653514,1761781734554,-414.26840955,0.00013705,2]
[392653515,1761781738033,-470.23791604,0.00013705,2]
[392653516,1761781741533,-318.011178,0.00013705,2]
[392653518,1761781743756,-344.47075223,0.00013705,2]
[392653520,1761781760784,-162.20842138,0.00013705,2]
[392653522,1761781765468,-200.0,0.00013705,2]
[392653523,1761781767124,-160.36259135,0.00013705,2]
[392653524,1761781767146,-55.68588124,0.0001371,2]
[392653525,1761781767176,-83.95152741,0.00013722,2]
[392653546,1761781820690,-81.77847259,0.00013722,2]
[392653547,1761781820715,-168.22152741,0.00013735,2]
[392653560,1761781831699,-26.77847259,0.00013735,2]
[392653561,1761781831708,-1200.0,0.00013748,2]
[392653562,1761781831717,-195.0,0.00013857,2]
[392653563,1761781831726,-875.87,0.0001403,2]
[392653564,1761781831735,-300.0,0.00014036,2]
[392653565,1761781831744,-300.0,0.00014036,2]
[392653566,1761781831753,-33.63588496,0.00014037,2]
[392653569,1761781831835,-811.36411504,0.00014037,2]
[392653570,1761781831849,-300.22808493,0.0001404,2]
[392653571,1761781831861,-522.03688778,0.0001404,2]
[392653572,1761781831871,-655.88404497,0.0001404,2]
[392653573,1761781831887,-1190.50963109,0.0001404,2]
[392653574,1761781831898,-346.40949038,0.0001404,2]
[392653575,1761781831927,-5518.309,0.0001404,2]
[392653576,1761781831939,-3337.93745374,0.0001404,2]
[392653577,1761781831950,-1136.25040493,0.0001404,2]
[392653578,1761781831976,-2025.63500218,0.0001404,2]
[392653579,1761781831986,-200.0,0.00014064,2]
[392653580,1761781831995,-150.0,0.00014076,2]
[392653581,1761781832005,-500.0,0.00014077,2]
[392653582,1761781832015,-500.0,0.00014077,2]
[392653583,1761781832024,-500.0,0.00014077,2]
[392653585,1761781832033,-500.0,0.00014077,2]
[392653587,1761781832042,-311.88213689,0.00014077,2]
[392653589,1761781832051,-500.0,0.00014077,2]
[392653591,1761781832060,-500.0,0.00014077,2]
[392653593,1761781832069,-500.0,0.00014077,2]
[392653595,1761781832078,-500.0,0.00014077,2]
[392653597,1761781832087,-500.0,0.00014077,2]
[392653599,1761781832097,-20622.78381959,0.00014078,2]
[392653666,1761781837785,-316.18960814,0.00014078,2]
[392653667,1761781837797,-4176.08657227,0.00014078,2]
[392653668,1761781837806,-200.0,0.00014171,2]
[392653669,1761781837816,-34.01413566,0.00014249,2]
[392653670,1761781837829,-243.34265486,0.00014249,2]
[392653671,1761781837839,-500.0,0.00014356,2]
[392653672,1761781837851,-150.0,0.000144,2]
[392653673,1761781837862,-508.67373169,0.000146,2]
[392653674,1761781837873,-221.53471527,0.0001461,2]
[392653675,1761781837883,-899.6748,0.000147,2]
[392653676,1761781837892,-150.0,0.000147,2]
[392653677,1761781837903,-168.2,0.000147,2]
[392653678,1761781837912,-150.0,0.000147,2]
[392653679,1761781837922,-500.0,0.00014791,2]
[392653680,1761781837933,-151.0,0.00014791,2]
[392653681,1761781837942,-151.0,0.00014791,2]
[392653682,1761781837952,-151.0,0.00014791,2]
[392653683,1761781837962,-151.0,0.00014791,2]
[392653684,1761781837971,-322.6107,0.00014791,2]
[392653685,1761781837980,-151.0,0.00014791,2]
[392653686,1761781837989,-151.0,0.00014791,2]
[392653687,1761781837999,-151.0,0.00014791,2]
[392653688,1761781838008,-151.0,0.00014791,2]
[392653689,1761781838018,-574.12855637,0.00014791,2]
[392653690,1761781838027,-151.0,0.00014791,2]
[392653691,1761781838037,-151.0,0.00014791,2]
[392653692,1761781838047,-151.0,0.00014791,2]
[392653693,1761781838056,-500.0,0.00014791,2]
[392653694,1761781838066,-500.0,0.00014791,2]
[392653696,1761781838075,-1928.79113265,0.000148,2]
[392653698,1761781838085,-4325.33422066,0.000148,2]
[392653700,1761781838097,-12494.34882865,0.000148,2]
[392653703,1761781838109,-10848.87272525,0.000148,2]